fUST/lending_fUST_20240604
["ID","MTS","AMOUNT","RATE_DAILY","PERIOD"]
[328537082,1717506642485,-500.0,0.00022191,2]
[328537084,1717506642494,-1451.93,0.00022191,2]
[328537086,1717506642504,-151.0,0.00022191,2]
[328537088,1717506642514,-269.275456,0.00022191,2]
[328537090,1717506642523,-483.77,0.00022191,2]
[328537092,1717506642532,-500.0,0.00022191,2]
[328537094,1717506642542,-564.0,0.00022191,2]
[328537096,1717506642551,-1423.75,0.00022191,2]
[328537098,1717506642560,-500.0,0.00022191,2]
[328537100,1717506642569,-500.0,0.00022191,2]
[328537102,1717506642578,-466.02,0.00022191,2]
[328537104,1717506642587,-500.0,0.00022191,2]
[328537106,1717506642596,-3332.7,0.00022191,2]
[328537108,1717506642606,-500.0,0.00022191,2]
[328537110,1717506642615,-500.0,0.00022191,2]
[328537112,1717506642626,-500.0,0.00022191,2]
[328537114,1717506642635,-5147.82,0.00022191,2]
[328537116,1717506642645,-500.0,0.00022191,2]
[328537118,1717506642654,-500.0,0.00022191,2]
[328537120,1717506642663,-500.0,0.00022191,2]
[328537122,1717506642673,-1626.24,0.00022191,2]
[328537124,1717506642682,-500.0,0.00022191,2]
[328537126,1717506642691,-500.0,0.00022191,2]
[328537128,1717506642701,-632.86,0.00022191,2]
[328537130,1717506642710,-500.0,0.00022191,2]
[328537132,1717506642720,-706.51,0.00022191,2]
[328537134,1717506642729,-488.89385236,0.00022191,2]
[328537136,1717506642738,-562.05,0.00022191,2]
[328537138,1717506642747,-500.0,0.00022191,2]
[328537140,1717506642756,-500.0,0.00022191,2]
[328537142,1717506642766,-500.0,0.00022191,2]
[328537143,1717506642775,-500.0,0.00022191,2]
[328537146,1717506642784,-500.0,0.00022191,2]
[328537147,1717506642794,-500.0,0.00022191,2]
[328537149,1717506642803,-151.0,0.00022191,2]
[328537151,1717506642812,-500.0,0.00022191,2]
[328537153,1717506642822,-151.0,0.00022191,2]
[328537155,1717506642831,-6059.71,0.00022191,2]
[328537157,1717506642842,-500.0,0.00022191,2]
[328537159,1717506642851,-552.2,0.00022191,2]
[328537162,1717506642861,-1185.60474358,0.00022191,2]
[328537244,1717506643596,-195.48525642,0.00022191,2]
[328537246,1717506643606,-169.31453361,0.00022191,2]
[328537562,1717506646403,-330.68546639,0.00022191,2]
[328537564,1717506646414,-500.0,0.00022191,2]
[328537566,1717506646422,-500.0,0.00022191,2]
[328537568,1717506646431,-500.0,0.00022191,2]
[328537570,1717506646440,-818.55,0.00022191,2]
[328537572,1717506646449,-500.0,0.00022191,2]
[328537574,1717506646458,-696.16,0.00022191,2]
[328537575,1717506646467,-500.0,0.00022191,2]
[328537577,1717506646476,-1163.0,0.00022191,2]
[328537579,1717506646485,-500.0,0.00022191,2]
[328537581,1717506646495,-500.0,0.00022191,2]
[328537583,1717506646504,-500.0,0.00022191,2]
[328537585,1717506646514,-500.0,0.00022191,2]
[328537588,1717506646523,-500.0,0.00022191,2]
[328537589,1717506646533,-500.0,0.00022191,2]
[328537591,1717506646543,-500.0,0.00022191,2]
[328537593,1717506646555,-286.81614891,0.00022191,2]
[328537614,1717506647158,-213.18385109,0.00022191,2]
[328537616,1717506647169,-500.0,0.00022191,2]
[328537618,1717506647179,-500.0,0.00022191,2]
[328537619,1717506647189,-151.0,0.00022191,2]
[328537621,1717506647198,-500.0,0.00022191,2]
[328537623,1717506647207,-151.0,0.00022191,2]
[328537625,1717506647216,-701.59,0.00022191,2]
[328537627,1717506647225,-500.0,0.00022191,2]
[328537628,1717506647234,-151.0,0.00022191,2]
[328537630,1717506647243,-500.0,0.00022191,2]
[328537632,1717506647252,-500.0,0.00022191,2]
[328537634,1717506647261,-500.0,0.00022191,2]
[328537636,1717506647270,-500.0,0.00022191,2]
[328537638,1717506647280,-500.0,0.00022191,2]
[328537640,1717506647289,-151.0,0.00022191,2]
[328537642,1717506647298,-500.0,0.00022191,2]
[328537644,1717506647310,-500.0,0.00022191,2]
[328537646,1717506647319,-151.0,0.00022191,2]
[328537648,1717506647328,-151.0,0.00022191,2]
[328537650,1717506647337,-500.0,0.00022191,2]
[328537652,1717506647347,-151.0,0.00022191,2]
[328537654,1717506647356,-158.174734,0.00022191,2]
[328537656,1717506647365,-818.44,0.00022191,2]
[328537658,1717506647374,-2542.19,0.00022191,2]
[328537660,1717506647385,-500.0,0.00022191,2]
[328537662,1717506647394,-6359.01106052,0.00022365,7]
[328537664,1717506647402,-36092.91041034,0.00022365,3]
[328537666,1717506647412,-151.0,0.00022365,2]
[328537668,1717506647421,-151.0,0.00022365,2]
[328537670,1717506647431,-151.0,0.00022385,5]
[328537671,1717506647440,-161.39970472,0.00022465,2]
[328537673,1717506647449,-461.74457998,0.00022465,2]
[328537675,1717506647458,-151.0,0.00022465,2]
[328537677,1717506647468,-153.022588,0.00022465,2]
[328537679,1717506647477,-500.0,0.00022465,2]
[328537681,1717506647486,-151.0,0.00022465,2]
[328537683,1717506647494,-151.49883,0.00022465,2]
[328537685,1717506647503,-500.0,0.00022465,2]
[328537687,1717506647512,-500.0,0.00022465,2]
[328537689,1717506647521,-500.0,0.00022465,2]
[328537691,1717506647530,-500.0,0.00022465,2]
[328537693,1717506647539,-500.0,0.00022465,2]
[328537695,1717506647548,-500.0,0.00022465,2]
[328537697,1717506647558,-595.84,0.00022465,2]
[328537699,1717506647568,-151.0,0.00022465,2]
[328537701,1717506647577,-151.0,0.00022465,2]
[328537703,1717506647586,-151.0,0.00022465,2]
[328537705,1717506647595,-294.06970155,0.00022465,2]
[328537706,1717506647603,-500.0,0.00022465,2]
[328537708,1717506647613,-500.0,0.00022465,2]
[328537710,1717506647622,-500.0,0.00022465,2]
[328537712,1717506647632,-500.0,0.00022465,2]
[328537714,1717506647641,-500.0,0.00022465,2]
[328537716,1717506647650,-500.0,0.00022465,2]
[328537718,1717506647659,-500.0,0.00022465,2]
[328537720,1717506647668,-500.0,0.00022465,2]
[328537722,1717506647678,-500.0,0.00022465,2]
[328537724,1717506647686,-500.0,0.00022465,2]
[328537726,1717506647695,-500.0,0.00022465,2]
[328537728,1717506647704,-500.0,0.00022465,2]
[328537730,1717506647713,-500.0,0.00022465,2]
[328537732,1717506647722,-500.0,0.00022465,2]
[328537734,1717506647731,-500.0,0.00022465,2]
[328537736,1717506647739,-500.0,0.00022465,2]
[328537738,1717506647748,-500.0,0.00022465,2]
[328537740,1717506647757,-500.0,0.00022465,2]
[328537742,1717506647766,-500.0,0.00022465,2]
[328537744,1717506647774,-500.0,0.00022465,2]
[328537745,1717506647783,-519.14,0.00022465,2]
[328537746,1717506647792,-500.0,0.00022465,2]
[328537747,1717506647800,-706.88,0.00022465,2]
[328537748,1717506647809,-622.58,0.00022465,2]
[328537749,1717506647818,-525.9,0.00022465,2]
[328537750,1717506647827,-500.0,0.00022465,2]
[328537751,1717506647835,-500.0,0.00022465,2]
[328537752,1717506647844,-593.19,0.00022465,2]
[328537753,1717506647853,-500.0,0.00022465,2]
[328537754,1717506647862,-500.0,0.00022465,2]
[328537755,1717506647871,-500.0,0.00022465,2]
[328537756,1717506647881,-500.0,0.00022465,2]
[328537757,1717506647890,-500.0,0.00022465,2]
[328537758,1717506647900,-759.52,0.00022465,2]
[328537760,1717506647909,-500.0,0.00022465,2]
[328537762,1717506647918,-500.0,0.00022465,2]
[328537764,1717506647926,-579.88,0.00022465,2]
[328537766,1717506647935,-500.0,0.00022465,2]
[328537768,1717506647945,-500.0,0.00022465,2]
[328537770,1717506647953,-500.0,0.00022465,2]
[328537772,1717506647962,-523.5,0.00022465,2]
[328537774,1717506647971,-284.79703,0.00022465,2]
[328537776,1717506647979,-283.65,0.00022465,2]
[328537788,1717506647988,-500.0,0.00022465,2]
[328537790,1717506648095,-500.0,0.00022465,2]
[328537792,1717506648105,-500.0,0.00022465,2]
[328537794,1717506648114,-1451.93,0.00022465,2]
[328537796,1717506648123,-176.24756937,0.00022465,2]
[328537798,1717506648134,-1423.75,0.00022465,2]
[328537800,1717506648143,-500.0,0.00022465,2]
[328537802,1717506648152,-3332.7,0.00022465,2]
[328537804,1717506648161,-500.0,0.00022465,2]
[328537806,1717506648170,-500.0,0.00022465,2]
[328537808,1717506648179,-500.0,0.00022465,2]
[328537810,1717506648187,-5147.82,0.00022465,2]
[328537812,1717506648197,-500.0,0.00022465,2]
[328537814,1717506648206,-1626.24,0.00022465,2]
[328537817,1717506648217,-500.0,0.00022465,2]
[328537819,1717506648237,-632.86,0.00022465,2]
[328537821,1717506648253,-500.0,0.00022465,2]
[328537822,1717506648262,-706.51,0.00022465,2]
[328537824,1717506648271,-562.05,0.00022465,2]
[328537827,1717506648281,-406.88,0.00022465,2]
[328537829,1717506648290,-500.0,0.00022465,2]
[328537831,1717506648299,-500.0,0.00022465,2]
[328537833,1717506648313,-6059.71,0.00022465,2]
[328537835,1717506648322,-380.8,0.00022465,2]
[328537837,1717506648330,-552.2,0.00022465,2]
[328537839,1717506648340,-1381.09,0.00022465,2]
[328537841,1717506648351,-500.0,0.00022465,2]
[328537843,1717506648360,-536.19435688,0.00022465,2]
[328537844,1717506648369,-818.55,0.00022465,2]
[328537847,1717506648378,-500.0,0.00022465,2]
[328537848,1717506648389,-696.16,0.00022465,2]
[328537850,1717506648398,-1163.0,0.00022465,2]
[328537852,1717506648407,-540.60505377,0.00022465,2]
[328537854,1717506648415,-500.0,0.00022465,2]
[328537856,1717506648425,-500.0,0.00022465,2]
[328537858,1717506648434,-500.0,0.00022465,2]
[328537860,1717506648443,-500.0,0.00022465,2]
[328537862,1717506648453,-500.0,0.00022465,2]
[328537865,1717506648462,-500.0,0.00022465,2]
[328537867,1717506648472,-467.34,0.00022465,2]
[328537868,1717506648481,-500.0,0.00022465,2]
[328537870,1717506648490,-701.59,0.00022465,2]
[328537872,1717506648499,-500.0,0.00022465,2]
[328537874,1717506648508,-151.0,0.00022465,2]
[328537877,1717506648518,-500.0,0.00022465,2]
[328537879,1717506648527,-500.0,0.00022465,2]
[328537881,1717506648536,-500.0,0.00022465,2]
[328537883,1717506648545,-500.0,0.00022465,2]
[328537885,1717506648555,-500.0,0.00022465,2]
[328537887,1717506648564,-500.0,0.00022465,2]
[328537889,1717506648573,-151.0,0.00022465,2]
[328537891,1717506648583,-500.0,0.00022465,2]
[328537893,1717506648592,-818.44,0.00022465,2]
[328537895,1717506648602,-2542.19,0.00022465,2]
[328537897,1717506648610,-500.0,0.00022465,2]
[328537899,1717506648619,-311.23,0.00022739,2]
[328537901,1717506648628,-280.87962279,0.00022739,2]
[328537903,1717506648638,-308.84162326,0.00022739,2]
[328537905,1717506648646,-326.86873019,0.00022739,2]
[328537907,1717506648655,-500.0,0.00022739,2]
[328537909,1717506648664,-595.84,0.00022739,2]
[328537911,1717506648674,-500.0,0.00022739,2]
[328537913,1717506648682,-500.0,0.00022739,2]
[328537915,1717506648692,-500.0,0.00022739,2]
[328537917,1717506648700,-500.0,0.00022739,2]
[328537919,1717506648710,-500.0,0.00022739,2]
[328537921,1717506648719,-500.0,0.00022739,2]
[328537922,1717506648729,-500.0,0.00022739,2]
[328537925,1717506648744,-500.0,0.00022739,2]
[328537927,1717506648765,-500.0,0.00022739,2]
[328537929,1717506648779,-500.0,0.00022739,2]
[328537930,1717506648788,-500.0,0.00022739,2]
[328537932,1717506648797,-500.0,0.00022739,2]
[328537934,1717506648806,-500.0,0.00022739,2]
[328537936,1717506648814,-500.0,0.00022739,2]
[328537938,1717506648823,-207.71312419,0.00022739,2]
[328537940,1717506648832,-500.0,0.00022739,2]
[328537943,1717506648841,-160.73,0.00022739,2]
[328537944,1717506648850,-630.51,0.00022739,2]
[328537947,1717506648860,-500.0,0.00022739,2]
[328537949,1717506648869,-706.88,0.00022739,2]
[328537950,1717506648879,-525.9,0.00022739,2]
[328537953,1717506648888,-326.78,0.00022739,2]
[328537955,1717506648897,-173.12,0.00022739,2]
[328537957,1717506648906,-329.04,0.00022739,2]
[328537959,1717506648915,-163.48,0.00022739,2]
[328537961,1717506648924,-759.52,0.00022739,2]
[328537962,1717506648932,-168.01,0.00022739,2]
[328537964,1717506648941,-449.5,0.00022739,2]
[328537966,1717506648950,-500.0,0.00022739,2]
[328537968,1717506648959,-500.0,0.00022739,2]
[328537970,1717506648968,-291.38,0.00022739,2]
[328537971,1717506648977,-500.0,0.00022739,2]
[328537973,1717506648986,-1451.93,0.00022739,2]
[328537975,1717506648995,-1423.75,0.00022739,2]
[328537977,1717506649005,-616.95,0.00022739,2]
[328537979,1717506649014,-3332.7,0.00022739,2]
[328537981,1717506649023,-500.0,0.00022739,2]
[328537982,1717506649032,-500.0,0.00022739,2]
[328537984,1717506649041,-5147.82,0.00022739,2]
[328537986,1717506649051,-343.87,0.00022739,2]
[328537988,1717506649060,-500.0,0.00022739,2]
[328537990,1717506649069,-1626.24,0.00022739,2]
[328537991,1717506649078,-360.98934441,0.00022739,2]
[328537993,1717506649086,-632.86,0.00022739,2]
[328537995,1717506649096,-500.0,0.00022739,2]
[328537997,1717506649105,-706.51,0.00022739,2]
[328537998,1717506649114,-562.05,0.00022739,2]
[328537999,1717506649123,-500.0,0.00022739,2]
[328538000,1717506649134,-500.0,0.00022739,2]
[328538001,1717506649143,-6059.71,0.00022739,2]
[328538002,1717506649151,-552.2,0.00022739,2]
[328538003,1717506649161,-1381.09,0.00022739,2]
[328538004,1717506649170,-500.0,0.00022739,2]
[328538005,1717506649179,-818.55,0.00022739,2]
[328538007,1717506649188,-500.0,0.00022739,2]
[328538009,1717506649197,-696.16,0.00022739,2]
[328538011,1717506649206,-1163.0,0.00022739,2]
[328538013,1717506649215,-500.0,0.00022739,2]
[328538015,1717506649223,-500.0,0.00022739,2]
[328538017,1717506649232,-270.75956692,0.00022739,2]
[328538019,1717506649242,-500.0,0.00022739,2]
[328538021,1717506649251,-500.0,0.00022739,2]
[328538023,1717506649260,-352.93,0.00022739,2]
[328538025,1717506649269,-500.0,0.00022739,2]
[328538027,1717506649278,-500.0,0.00022739,2]
[328538028,1717506649287,-701.59,0.00022739,2]
[328538030,1717506649296,-500.0,0.00022739,2]
[328538032,1717506649308,-500.0,0.00022739,2]
[328538034,1717506649317,-500.0,0.00022739,2]
[328538036,1717506649326,-500.0,0.00022739,2]
[328538037,1717506649335,-500.0,0.00022739,2]
[328538039,1717506649346,-151.0,0.00022739,2]
[328538041,1717506649355,-199.384077,0.00022739,2]
[328538043,1717506649364,-151.0,0.00022739,2]
[328538044,1717506649373,-500.0,0.00022739,2]
[328538046,1717506649384,-818.44,0.00022739,2]
[328538048,1717506649394,-2542.19,0.00022739,2]
[328538050,1717506649404,-151.0,0.00022929,5]
[328538051,1717506649413,-151.0,0.00022929,5]
[328538052,1717506649422,-228.13542752,0.00023012,2]
[328538053,1717506649432,-595.84,0.00023013,2]
[328538054,1717506649441,-500.0,0.00023013,2]
[328538055,1717506649451,-500.0,0.00023013,2]
[328538056,1717506649460,-500.0,0.00023013,2]
[328538057,1717506649471,-500.0,0.00023013,2]
[328538058,1717506649481,-308.79,0.00023013,2]
[328538059,1717506649492,-500.0,0.00023013,2]
[328538060,1717506649502,-500.0,0.00023013,2]
[328538061,1717506649512,-292.14,0.00023013,2]
[328538062,1717506649523,-500.0,0.00023013,2]
[328538063,1717506649534,-240.56543612,0.00023013,2]
[328538064,1717506649543,-500.0,0.00023013,2]
[328538065,1717506649554,-500.0,0.00023013,2]
[328538066,1717506649564,-500.0,0.00023013,2]
[328538067,1717506649575,-500.0,0.00023013,2]
[328538068,1717506649588,-500.0,0.00023013,2]
[328538069,1717506649597,-500.0,0.00023013,2]
[328538070,1717506649607,-706.88,0.00023013,2]
[328538071,1717506649617,-525.9,0.00023013,2]
[328538072,1717506649628,-759.52,0.00023013,2]
[328538073,1717506649638,-500.0,0.00023013,2]
[328538074,1717506649647,-500.0,0.00023013,2]
[328538075,1717506649656,-1451.93,0.00023013,2]
[328538076,1717506649666,-1423.75,0.00023013,2]
[328538077,1717506649676,-3332.7,0.00023013,2]
[328538078,1717506649686,-500.0,0.00023013,2]
[328538079,1717506649695,-500.0,0.00023013,2]
[328538080,1717506649707,-5147.82,0.00023013,2]
[328538081,1717506649718,-500.0,0.00023013,2]
[328538082,1717506649728,-1626.24,0.00023013,2]
[328538083,1717506649738,-632.86,0.00023013,2]
[328538084,1717506649748,-500.0,0.00023013,2]
[328538085,1717506649759,-706.51,0.00023013,2]
[328538086,1717506649769,-562.05,0.00023013,2]
[328538087,1717506649779,-500.0,0.00023013,2]
[328538088,1717506649788,-500.0,0.00023013,2]
[328538089,1717506649797,-6059.71,0.00023013,2]
[328538090,1717506649807,-552.2,0.00023013,2]
[328538091,1717506649816,-1381.09,0.00023013,2]
[328538092,1717506649826,-500.0,0.00023013,2]
[328538093,1717506649835,-818.55,0.00023013,2]
[328538094,1717506649844,-500.0,0.00023013,2]
[328538095,1717506649853,-696.16,0.00023013,2]
[328538096,1717506649862,-1163.0,0.00023013,2]
[328538097,1717506649872,-500.0,0.00023013,2]
[328538098,1717506649881,-500.0,0.00023013,2]
[328538099,1717506649890,-500.0,0.00023013,2]
[328538100,1717506649899,-500.0,0.00023013,2]
[328538101,1717506649908,-500.0,0.00023013,2]
[328538102,1717506649917,-701.59,0.00023013,2]
[328538103,1717506649925,-500.0,0.00023013,2]
[328538104,1717506649935,-500.0,0.00023013,2]
[328538105,1717506649944,-500.0,0.00023013,2]
[328538106,1717506649954,-151.0,0.00023013,2]
[328538107,1717506649963,-500.0,0.00023013,2]
[328538108,1717506649973,-818.44,0.00023013,2]
[328538109,1717506649982,-2542.19,0.00023013,2]
[328538110,1717506649991,-173.41781311,0.00023268,2]
[328538111,1717506650000,-155.32500816,0.00023286,2]
[328538112,1717506650009,-595.84,0.00023287,2]
[328538113,1717506650018,-500.0,0.00023287,2]
[328538114,1717506650027,-500.0,0.00023287,2]
[328538115,1717506650037,-500.0,0.00023287,2]
[328538116,1717506650046,-500.0,0.00023287,2]
[328538117,1717506650056,-500.0,0.00023287,2]
[328538118,1717506650065,-500.0,0.00023287,2]
[328538119,1717506650075,-500.0,0.00023287,2]
[328538120,1717506650084,-500.0,0.00023287,2]
[328538121,1717506650093,-360.4,0.00023287,2]
[328538122,1717506650102,-500.0,0.00023287,2]
[328538123,1717506650111,-500.0,0.00023287,2]
[328538124,1717506650120,-706.88,0.00023287,2]
[328538125,1717506650131,-525.9,0.00023287,2]
[328538126,1717506650140,-759.52,0.00023287,2]
[328538127,1717506650149,-500.0,0.00023287,2]
[328538128,1717506650158,-1451.93,0.00023287,2]
[328538129,1717506650168,-1423.75,0.00023287,2]
[328538130,1717506650177,-3332.7,0.00023287,2]
[328538131,1717506650186,-438.69,0.00023287,2]
[328538132,1717506650195,-500.0,0.00023287,2]
[328538133,1717506650204,-5147.82,0.00023287,2]
[328538134,1717506650214,-255.57648648,0.00023287,2]
[328538135,1717506650224,-1626.24,0.00023287,2]
[328538136,1717506650232,-632.86,0.00023287,2]
[328538137,1717506650241,-500.0,0.00023287,2]
[328538138,1717506650250,-706.51,0.00023287,2]
[328538139,1717506650259,-562.05,0.00023287,2]
[328538140,1717506650269,-500.0,0.00023287,2]
[328538141,1717506650278,-500.0,0.00023287,2]
[328538142,1717506650287,-6059.71,0.00023287,2]
[328538143,1717506650296,-552.2,0.00023287,2]
[328538144,1717506650308,-1381.09,0.00023287,2]
[328538145,1717506650318,-500.0,0.00023287,2]
[328538146,1717506650327,-818.55,0.00023287,2]
[328538147,1717506650336,-500.0,0.00023287,2]
[328538148,1717506650345,-696.16,0.00023287,2]
[328538149,1717506650355,-1163.0,0.00023287,2]
[328538150,1717506650364,-500.0,0.00023287,2]
[328538151,1717506650373,-500.0,0.00023287,2]
[328538152,1717506650385,-500.0,0.00023287,2]
[328538153,1717506650394,-500.0,0.00023287,2]
[328538154,1717506650402,-500.0,0.00023287,2]
[328538155,1717506650411,-701.59,0.00023287,2]
[328538156,1717506650420,-500.0,0.00023287,2]
[328538157,1717506650429,-500.0,0.00023287,2]
[328538158,1717506650438,-500.0,0.00023287,2]
[328538159,1717506650447,-151.0,0.00023287,2]
[328538160,1717506650456,-500.0,0.00023287,2]
[328538161,1717506650465,-818.44,0.00023287,2]
[328538162,1717506650474,-2542.19,0.00023287,2]
[328538163,1717506650484,-151.0,0.00023474,5]
[328538164,1717506650494,-151.0,0.00023474,5]
[328538165,1717506650504,-1154.21657296,0.0002356,2]
[328538166,1717506650513,-595.84,0.00023561,2]
[328538167,1717506650522,-500.0,0.00023561,2]
[328538168,1717506650531,-500.0,0.00023561,2]
[328538169,1717506650540,-500.0,0.00023561,2]
[328538170,1717506650548,-500.0,0.00023561,2]
[328538171,1717506650559,-500.0,0.00023561,2]
[328538172,1717506650568,-500.0,0.00023561,2]
[328538173,1717506650578,-292.00735547,0.00023561,2]
[328538174,1717506650589,-500.0,0.00023561,2]
[328538175,1717506650600,-500.0,0.00023561,2]
[328538176,1717506650609,-500.0,0.00023561,2]
[328538177,1717506650618,-706.88,0.00023561,2]
[328538178,1717506650628,-525.9,0.00023561,2]
[328538179,1717506650637,-759.52,0.00023561,2]
[328538180,1717506650646,-500.0,0.00023561,2]
[328538181,1717506650655,-1451.93,0.00023561,2]
[328538182,1717506650664,-1423.75,0.00023561,2]
[328538183,1717506650761,-3332.7,0.00023561,2]
[328538184,1717506650771,-500.0,0.00023561,2]
[328538185,1717506650781,-5147.82,0.00023561,2]
[328538186,1717506650790,-1626.24,0.00023561,2]
[328538187,1717506650799,-632.86,0.00023561,2]
[328538188,1717506650809,-500.0,0.00023561,2]
[328538189,1717506650821,-706.51,0.00023561,2]
[328538190,1717506650830,-562.05,0.00023561,2]
[328538191,1717506650841,-500.0,0.00023561,2]
[328538192,1717506650850,-500.0,0.00023561,2]
[328538193,1717506650859,-6059.71,0.00023561,2]
[328538194,1717506650869,-552.2,0.00023561,2]
[328538195,1717506650880,-1381.09,0.00023561,2]
[328538196,1717506650889,-229.39,0.00023561,2]
[328538197,1717506650899,-818.55,0.00023561,2]
[328538198,1717506650908,-576.95392334,0.00023561,2]
[328538199,1717506650918,-696.16,0.00023561,2]
[328538200,1717506650927,-1163.0,0.00023561,2]
[328538201,1717506650936,-500.0,0.00023561,2]
[328538202,1717506650945,-500.0,0.00023561,2]
[328538203,1717506650954,-500.0,0.00023561,2]
[328538204,1717506650963,-500.0,0.00023561,2]
[328538205,1717506650972,-500.0,0.00023561,2]
[328538206,1717506650981,-701.59,0.00023561,2]
[328538207,1717506650990,-500.0,0.00023561,2]
[328538208,1717506650999,-500.0,0.00023561,2]
[328538209,1717506651008,-70.02809548,0.00023561,2]
[328538210,1717506651105,-429.97190452,0.00023561,2]
[328538211,1717506651115,-500.0,0.00023561,2]
[328538212,1717506651124,-818.44,0.00023561,2]
[328538213,1717506651134,-2542.19,0.00023561,2]
[328538214,1717506651143,-261.95958839,0.00023821,2]
[328538215,1717506651152,-1457.56102675,0.00023822,2]
[328538216,1717506651161,-8903.96760172,0.0002383,2]
[328538217,1717506651172,-6551.96449428,0.0002383,2]
[328538218,1717506667745,154.93802479,9.999e-05,2]
[328538219,1717506679918,194.93299377,9.999e-05,2]
[328538220,1717506700511,239.37753145,9.999e-05,2]
[328538221,1717506701802,659.24463131,9.999e-05,2]
[328538223,1717506773148,2011.75590866,9.999e-05,2]
[328538224,1717506789346,154.93802479,9.999e-05,2]
[328538225,1717506798232,1341.97127634,9.999e-05,2]
[328538228,1717507409024,2091.43127022,9.999e-05,2]
[328538229,1717507626196,-154.93802479,0.00019987,2]
[328538230,1717507626217,-165.78865953,0.00020401,2]
[328538231,1717507626235,-162.93661136,0.00020499,2]
[328538232,1717507626253,-528.58427928,0.000205,4]
[328538233,1717507626272,-57883.80636124,0.000205,2]
[328538234,1717507641107,-22116.19363876,0.000205,2]
[328538235,1717507641127,-430.25504642,0.00020506,2]
[328538236,1717507641147,-500.0,0.00020506,2]
[328538237,1717507641168,-399.37942586,0.00020506,2]
[328538238,1717507641191,-407.8726768,0.00020506,2]
[328538239,1717507641212,-184.70656089,0.00020506,2]
[328538240,1717507641231,-24900.0,0.00020507,2]
[328538241,1717507641252,-1208.3538919,0.00020725,2]
[328538242,1717507641273,-622.18052098,0.00021187,2]
[328538243,1717507641296,-15224.01303417,0.0002191,2]
[328538244,1717507641316,-500.0,0.00021917,2]
[328538245,1717507641338,-500.0,0.00021917,2]
[328538246,1717507641358,-500.0,0.00021917,2]
[328538247,1717507641379,-494.89262078,0.00021917,2]
[328538248,1717507641399,-219.97,0.00021917,2]
[328538249,1717507641418,-500.0,0.00021917,2]
[328538250,1717507641438,-500.0,0.00021917,2]
[328538251,1717507641459,-500.0,0.00021917,2]
[328538252,1717507641479,-500.0,0.00021917,2]
[328538253,1717507641498,-500.0,0.00021917,2]
[328538254,1717507641519,-500.0,0.00021917,2]
[328538255,1717507641540,-500.45,0.00021917,2]
[328538256,1717507641559,-500.0,0.00021917,2]
[328538257,1717507641580,-500.0,0.00021917,2]
[328538258,1717507641604,-500.0,0.00021917,2]
[328538259,1717507641624,-500.0,0.00021917,2]
[328538260,1717507641644,-500.0,0.00021917,2]
[328538261,1717507641666,-500.0,0.00021917,2]
[328538262,1717507641686,-579.73,0.00021917,2]
[328538263,1717507641708,-500.0,0.00021917,2]